[Event "28th Tamil Nadu IM Norm 2024"]
[Site "Tamil Nadu"]
[Date "2024.09.15"]
[Round "1.1"]
[White "Sriram Adarsh Uppala"]
[Black "Podolchenko, Evgeniy"]
[Result "1/2-1/2"]
[ECO "A01"]
[WhiteElo "2333"]
[BlackElo "2338"]
[Annotator "RC"]
[PlyCount "68"]
[EventDate "2024.09.15"]
[EventCountry "IND"]
[SourceTitle "playchess.com"]
[Source "ChessBase"]
[SourceQuality "1"]
[TimeControl "5400+30"]

1. b3 {[%emt 0:00:25]} e5 {[%emt 0:00:55]} 2. Bb2 {[%emt 0:00:07]} Nc6 {[%emt 0:00:04]} 3. e3 {[%emt 0:00:16]} Nf6 {[%emt 0:00:45]} 4. Nf3 {[%emt 0:00:13]} e4 {[%emt 0:01:44]} 5. Nd4 {[%emt 0:00:07]} Bc5 {[%emt 0:02:24]} 6. d3 {[%emt 0:10:12]} Bxd4 {[%emt 0:12:18]} 7. exd4 {[%emt 0:01:55]} d5 {[%emt 0:00:36]} 8. Be2 {[%emt 0:07:58]} O-O {[%emt 0:00:31]} 9. O-O {[%emt 0:03:35]} Re8 {[%emt 0:01:01]} 10. dxe4 {[%emt 0:05:04]} Nxe4 {[%emt 0:00:44]} 11. Nd2 {[%emt 0:07:00]} Bf5 {[%emt 0:06:31]} 12. Nxe4 {[%emt 0:03:21]} Bxe4 {[%emt 0:02:46]} 13. Qd2 {[%emt 0:00:34]} Qd6 {[%emt 0:09:29]} 14. f3 {[%emt 0:04:58]} Bg6 {[%emt 0:00:41]} 15. Rfe1 {[%emt 0:01:59]} Nd8 {[%emt 0:05:49]} 16. c4 {[%emt 0:04:00]} c6 {[%emt 0:13:25]} 17. Bf1 {[%emt 0:07:34]} Ne6 {[%emt 0:01:26]} 18. Re5 {[%emt 0:04:57]} f6 {[%emt 0:02:35]} 19. Re3 {[%emt 0:01:32]} Nf8 {[%emt 0:02:33]} 20. Rxe8 {[%emt 0:05:08]} Rxe8 {[%emt 0:00:48]} 21. cxd5 {[%emt 0:01:04]} cxd5 {[%emt 0:02:13]} 22. Qa5 {[%emt 0:02:06]} a6 {[%emt 0:04:18]} 23. Ba3 {[%emt 0:03:31]} Qe6 {[%emt 0:01:05]} 24. Kh1 {[%emt 0:00:50]} Bf7 {[%emt 0:02:02]} 25. Qc7 {[%emt 0:05:58]} b5 {[%emt 0:05:55]} 26. Bb4 {[%emt 0:03:51]} Qe3 {[%emt 0:04:56]} 27. Rd1 {[%emt 0:02:09]} Ne6 {[%emt 0:01:08]} 28. Qd6 {[%emt 0:02:25]} Qf2 {[%emt 0:03:18]} 29. Qxa6 {[%emt 0:02:41]} Nf4 {[%emt 0:01:25]} 30. h3 {[%emt 0:04:28]} Nxh3 {[%emt 0:00:59]} 31. Bxb5 {[%emt 0:01:22]} Nf4 {[%emt 0:00:39]} 32. Bf1 {[%emt 0:00:31]} Qh4+ {[%emt 0:04:19]} 33. Kg1 {[%emt 0:00:01]} Qg3 {[%emt 0:00:07]} 34. Bd6 {[%emt 0:01:00]} Nh3+ {[%emt 0:00:47]} 1/2-1/2

[Event "28th Tamil Nadu IM Norm 2024"]
[Site "Tamil Nadu"]
[Date "2024.09.15"]
[Round "1.2"]
[White "Aakash G"]
[Black "Gochelashvili, David"]
[Result "1/2-1/2"]
[ECO "A01"]
[WhiteElo "2279"]
[BlackElo "2280"]
[Annotator "RC"]
[PlyCount "114"]
[EventDate "2024.09.15"]
[EventCountry "IND"]
[SourceTitle "playchess.com"]
[Source "ChessBase"]
[SourceQuality "1"]
[TimeControl "5400+30"]

1. b3 {[%emt 0:00:34]} e5 {[%emt 0:01:00]} 2. Bb2 {[%emt 0:00:30]} Nc6 {[%emt 0:00:05]} 3. e3 {[%emt 0:00:06]} g6 {[%emt 0:00:27]} 4. Bb5 {[%emt 0:03:47]} Bg7 {[%emt 0:02:05]} 5. f4 {[%emt 0:01:54]} d6 {[%emt 0:01:39]} 6. Nf3 {[%emt 0:00:37]} Nge7 {[%emt 0:11:53]} 7. fxe5 {[%emt 0:09:07]} O-O {[%emt 0:01:27]} 8. O-O {[%emt 0:01:38]} dxe5 {[%emt 0:00:14]} 9. Nc3 {[%emt 0:01:24]} a6 {[%emt 0:05:17]} 10. Be2 {[%emt 0:01:43]} h6 {[%emt 0:01:36]} 11. Qc1 {[%emt 0:04:57]} f5 {[%emt 0:09:04]} 12. e4 {[%emt 0:03:28]} Be6 {[%emt 0:00:48]} 13. Bc4 {[%emt 0:02:21]} Bxc4 {[%emt 0:05:31]} 14. bxc4 {[%emt 0:00:03]} f4 {[%emt 0:00:06]} 15. Nd5 {[%emt 0:00:42]} g5 {[%emt 0:01:36]} 16. h3 {[%emt 0:01:43]} Ng6 {[%emt 0:00:38]} 17. Qd1 {[%emt 0:01:59]} Nd4 {[%emt 0:28:58]} 18. Ba3 {[%emt 0:06:09]} Rf7 {[%emt 0:09:01]} 19. Rb1 {[%emt 0:01:11]} c6 {[%emt 0:05:28]} 20. Nxd4 {[%emt 0:06:51]} exd4 {[%emt 0:00:02]} 21. Nb6 {[%emt 0:00:10]} Rb8 {[%emt 0:00:05]} 22. Qg4 {[%emt 0:02:36]} d3 {[%emt 0:03:05]} 23. c3 {[%emt 0:08:28]} Qe8 {[%emt 0:01:34]} 24. Bd6 {[%emt 0:02:14]} Rd8 {[%emt 0:00:10]} 25. c5 {[%emt 0:00:12]} Qxe4 {[%emt 0:01:32]} 26. Rfe1 {[%emt 0:00:54]} Qf5 {[%emt 0:00:02]} 27. Qxf5 {[%emt 0:00:25]} Rxf5 {[%emt 0:00:01]} 28. Nc4 {[%emt 0:00:13]} Rd7 {[%emt 0:02:44]} 29. Re8+ {[%emt 0:01:46]} Kh7 {[%emt 0:02:30]} 30. Rb8 {[%emt 0:04:22]} f3 {[%emt 0:00:07]} 31. g4 {[%emt 0:00:53]} Rff7 {[%emt 0:01:21]} 32. Nb6 {[%emt 0:00:12]} Rde7 {[%emt 0:00:57]} 33. Bxe7 {[%emt 0:01:16]} Rxe7 {[%emt 0:00:01]} 34. Rd8 {[%emt 0:00:48]} Re2 {[%emt 0:03:54]} 35. Rxd3 {[%emt 0:02:10]} Rg2+ {[%emt 0:00:55]} 36. Kf1 {[%emt 0:02:27]} Rh2 {[%emt 0:00:02]} 37. Re1 {[%emt 0:01:05]} Rxh3 {[%emt 0:01:28]} 38. Kf2 {[%emt 0:04:28]} Ne5 {[%emt 0:00:40]} 39. Rxe5 {[%emt 0:01:17]} Bxe5 {[%emt 0:00:02]} 40. Nd7 {[%emt 0:00:14]} Bf4 {[%emt 0:01:45]} 41. Nf6+ {[%emt 0:00:16]} Kg6 {[%emt 0:00:27]} 42. Nh5 {[%emt 0:00:17]} Rh2+ {[%emt 0:00:38]} 43. Kxf3 {[%emt 0:00:08]} Bxd2 {[%emt 0:00:32]} 44. Rd6+ {[%emt 0:00:27]} Kf7 {[%emt 0:00:09]} 45. Rxh6 {[%emt 0:01:32]} Bxc3 {[%emt 0:00:06]} 46. Rh7+ {[%emt 0:00:08]} Kf8 {[%emt 0:00:24]} 47. Rxb7 {[%emt 0:00:29]} Rxa2 {[%emt 0:00:33]} 48. Rc7 {[%emt 0:00:22]} a5 {[%emt 0:00:34]} 49. Rxc6 {[%emt 0:00:30]} a4 {[%emt 0:00:01]} 50. Ra6 {[%emt 0:00:29]} a3 {[%emt 0:00:07]} 51. c6 {[%emt 0:00:11]} Be5 {[%emt 0:01:39]} 52. Nf6 {[%emt 0:01:33]} Bh2 {[%emt 0:00:51]} 53. Ra7 {[%emt 0:01:51]} Rc2 {[%emt 0:00:22]} 54. Ke4 {[%emt 0:02:02]} Rxc6 {[%emt 0:00:34]} 55. Kf5 {[%emt 0:00:06]} Rc7 {[%emt 0:00:36]} 56. Rxa3 {[%emt 0:00:46]} Kf7 {[%emt 0:00:01]} 57. Ne4 {[%emt 0:00:14]} Bf4 {[%emt 0:00:23]} 1/2-1/2

[Event "28th Tamil Nadu IM Norm 2024"]
[Site "Tamil Nadu"]
[Date "2024.09.15"]
[Round "1.3"]
[White "Tejaswini G"]
[Black "Dhruva Thota"]
[Result "0-1"]
[ECO "E62"]
[WhiteElo "2135"]
[BlackElo "2342"]
[Annotator "TA"]
[PlyCount "112"]
[EventDate "2024.09.15"]
[EventCountry "IND"]
[SourceTitle "playchess.com"]
[Source "ChessBase"]
[SourceQuality "1"]
[TimeControl "5400+30"]

{[%evp 26,112,-109,-104,-110,-114,-46,-53,-50,-44,-50,-113,-128,-118,-110,-110,-111,-175,-152,-149,-160,-140,-47,-60,165,160,166,191,181,185,189,136,126,126,120,145,137,145,118,116,152,61,68,13,12,5,12,8,8,10,8,-52,-45,-45,-56,-191,-191,-331,-331,-331,-331,-267,-267,-839,-792,-908,-782,-1589,-1432,-12794,-9365,-5739,-6031,-5622,-5289,-3583,-2449,-29971,-6054,-6095,-6195,-5551,-5389,-29976,-29975,-29977,-29976,-29985,-29986]} 1. d4 {[%emt 0:00:19]} Nf6 {[%emt 0:01:15]} 2. c4 {[%emt 0:00:33]} g6 {[%emt 0:00:17]} 3. Nc3 {[%emt 0:00:11]} Bg7 {[%emt 0:00:10]} 4. g3 {[%emt 0:00:08]} O-O {[%emt 0:00:21]} 5. Bg2 {[%emt 0:00:06]} d6 {[%emt 0:00:10]} 6. h3 {[%emt 0:00:07]} Nc6 {[%emt 0:09:18]} 7. Nf3 {[%emt 0:00:21]} Bf5 {[%emt 0:06:28]} 8. O-O {[%emt 0:12:31]} Ne4 {[%emt 0:11:10]} 9. Na4 {[%emt 0:11:38]} Bd7 {[%emt 0:05:26]} 10. Ne1 {[%emt 0:11:16]} f5 {[%emt 0:02:15]} 11. e3 {[%emt 0:03:26]} e5 {[%emt 0:07:04]} 12. d5 {[%emt 0:08:00]} Na5 {[%emt 0:08:16]} 13. Qc2 {[%emt 0:00:56]} b5 {[%emt 0:03:23]} (13... Nxc4 $1 $19 14. Qxc4 b5) 14. cxb5 {[%emt 0:01:45]} Bxb5 {[%emt 0:00:16]} 15. Nd3 {[%emt 0:00:52]} Nc4 {[%emt 0:08:17]} (15... Qd7 $17 16. b3 Rfc8) 16. Rd1 $1 $15 {[%emt 0:05:53]} Qd7 {[%emt 0:06:12]} 17. b3 {[%emt 0:04:04]} Bxa4 {[%emt 0:04:11]} 18. Qxc4 {[%emt 0:01:52]} (18. bxa4 $15 Nb6 19. Ba3) 18... Bb5 $17 {[%emt 0:00:19]} 19. Qc2 {[%emt 0:00:24]} Nc3 $1 {[%emt 0:04:16]} 20. Rd2 {[%emt 0:13:17]} e4 {[%emt 0:08:02]} 21. Nb2 {[%emt 0:00:18]} (21. Nf4 $17 Ne2+ 22. Rxe2 Bxa1 23. Re1) 21... Qf7 {[%emt 0:02:19]} 22. a4 {[%emt 0:06:34]} Ba6 {[%emt 0:00:39]} 23. b4 {[%emt 0:01:21]} Bb7 {[%emt 0:03:42]} (23... Nxd5 $17 24. Qb3 Nb6 25. Qxf7+ Rxf7) 24. Bf1 $1 $15 {[%emt 0:02:03]} Bxd5 $2 {[%emt 0:03:10]} (24... Kh8 $15 {keeps the upper hand.}) 25. Ra3 $18 {[%emt 0:02:26]} Qf6 {[%emt 0:04:01]} 26. Nc4 {[%emt 0:08:44]} Bxc4 {[%emt 0:01:55]} 27. Bxc4+ {[%emt 0:00:13]} d5 {[%emt 0:00:32] [#]} (27... Kh8 $2 28. Bb2 $18) 28. Rxc3 {[%emt 0:03:11]} (28. Bxd5+ Nxd5 29. Rxd5 Rf7) (28. Bb3 $1 $18 {[%cal Oc1b2][%mdl 512] aiming for Bb2!} Rad8 (28... c6 29. Bb2) 29. Bb2) 28... Qxc3 $16 {[%emt 0:00:28]} 29. Bxd5+ {[%emt 0:00:04]} Kh8 {[%emt 0:00:04]} 30. Bxa8 {[%emt 0:00:12]} Rxa8 {[%emt 0:00:51]} 31. Qxc3 {[%emt 0:01:02]} Bxc3 {[%emt 0:00:13]} 32. Rd7 {[%emt 0:02:04]} Be5 {[%emt 0:00:42] [#]} 33. Kg2 {[%emt 0:00:35]} ({White should try} 33. Re7 $1 $16 {[%cal Re7e5]} Rd8 34. Rxe5 Rd1+ 35. Kg2 Rxc1 36. Ra5) 33... Kg8 $14 {[%emt 0:00:39]} 34. Ba3 {[%emt 0:00:29]} (34. g4 $14) 34... a6 $11 {[%emt 0:00:29]} 35. Bc1 {[%emt 0:00:28]} Rb8 {[%emt 0:00:32]} 36. Bd2 {[%emt 0:00:07]} Rb6 {[%emt 0:00:27]} 37. Rd5 {[%emt 0:00:53]} Bd6 {[%emt 0:00:32]} 38. b5 {[%emt 0:00:33]} ({Better is} 38. g4 $11) 38... axb5 $15 {[%emt 0:00:28]} 39. axb5 {[%emt 0:00:04]} Kf7 {[%emt 0:00:34]} 40. Ba5 {[%emt 0:00:28]} ({White should play} 40. f3 $1 $15) 40... Ke6 $1 $19 {[%emt 0:00:22]} 41. Bxb6 {[%emt 0:00:52]} (41. Rd4 $142 Rxb5 42. Ra4) 41... Kxd5 $19 {[%emt 0:00:11]} 42. Bd4 {[%emt 0:00:32]} Bc5 {[%emt 0:00:23]} 43. Ba1 {[%emt 0:00:08]} Kc4 {[%emt 0:00:28]} 44. Kf1 $2 {[%emt 0:00:18]} (44. Be5 Bb6 (44... Kxb5 45. Bxc7 Kc4 46. Bb8 $11) 45. g4) 44... Kxb5 $19 {[%emt 0:00:18]} 45. Ke2 {[%emt 0:00:04]} Kc4 {[%emt 0:00:14]} 46. Kd1 {[%emt 0:00:16]} Kd3 {[%emt 0:00:18]} 47. h4 {[%emt 0:00:13]} Ba3 {[%emt 0:00:17]} 48. Be5 {[%emt 0:00:20]} c6 {[%emt 0:00:31]} 49. Bf6 {[%emt 0:00:07]} Bd6 {[%emt 0:00:12]} 50. Bb2 {[%emt 0:00:17]} Be7 {[%emt 0:00:44]} 51. Bc1 {[%emt 0:00:20]} Bd8 {[%emt 0:00:44]} (51... Bb4 $142 52. Bb2 c5 53. Kc1 Be1 54. Bh8 Bc3 (54... Bxf2 $2 55. Kb1 $19) 55. Bxc3 Kxc3 56. Kd1 Kd3 57. Kc1 c4 58. h5 c3 (58... gxh5 {gets mated.} 59. Kb2 c3+ 60. Kb3 c2 61. Kb4 c1=Q 62. Kb5 Qc7 63. g4 hxg4 64. f3 gxf3 65. Ka6 f2 66. Kb5 f1=Q 67. Ka4 Qa1+ 68. Kb5 Qaa5#) 59. hxg6 hxg6 60. g4 fxg4 61. Kb1 c2+ 62. Kb2 Kd2 63. Kb3 c1=Q (63... c1=B {leads to mate.} 64. Kc4 g3 65. fxg3 Kxe3 66. Kc3 Kf3 67. Kc2 e3 68. Kxc1 Kxg3 69. Kd1 Kf2 70. Kc2 e2 71. Kd3 e1=Q 72. Kc4 Qa5 73. Kd4 g5 74. Kc4 Ke3 75. Kb3 Kd3 76. Kb2 Qb4+ 77. Kc1 g4 78. Kd1 Qd2#) 64. Kb4 Qc6 65. f4 Kd3 (65... Kxe3 66. Kb3 Kd3 67. Kb2 Qc2+ 68. Ka1 Kc3 69. f5 Qb2#) (65... gxf3 66. Ka5 f2 67. Kb4 f1=Q 68. Kb3 Qcc4+ 69. Kb2 Qfc1#) 66. Ka3 Kc3 (66... Kxe3 67. Kb2 Kd3 68. Ka3 Qb5 69. f5 Kc2 70. fxg6 Qb3#) (66... g3 67. Kb4 Qb6+ 68. Ka4 Kc3 69. Ka3 Qb3#) 67. Ka2 Qb7 68. Ka3 Qb3#) 52. Ba3 {[%emt 0:00:21]} Bb6 {[%emt 0:00:11]} 53. Bb2 {[%emt 0:00:24]} c5 {[%emt 0:00:17]} 54. Bf6 {[%emt 0:00:09]} c4 {[%emt 0:00:20]} 55. Bb2 {[%emt 0:00:04]} c3 {[%emt 0:00:07]} 56. Bc1 {[%emt 0:00:04]} Ba5 {[%emt 0:00:10]} 0-1

[Event "28th Tamil Nadu IM Norm 2024"]
[Site "Tamil Nadu"]
[Date "2024.09.15"]
[Round "1.4"]
[White "Dinesh Rajan M"]
[Black "Manik, Mikulas"]
[Result "1/2-1/2"]
[ECO "B62"]
[WhiteElo "2258"]
[BlackElo "2316"]
[Annotator "TA"]
[PlyCount "60"]
[EventDate "2024.09.15"]
[EventCountry "IND"]
[SourceTitle "playchess.com"]
[Source "ChessBase"]
[SourceQuality "1"]
[TimeControl "5400+30"]

{[%evp 13,60,10,36,17,24,26,44,52,97,59,102,2,58,0,0,0,0,0,0,0,74,93,137,127,130,119,122,125,116,106,114,124,123,0,119,114,112,35,46,52,31,0,0,0,0,0,34,37,42]} 1. e4 {[%emt 0:00:34]} c5 {[%emt 0:00:05]} 2. Nf3 {[%emt 0:00:30]} d6 {[%emt 0:00:04]} 3. d4 {[%emt 0:00:05]} cxd4 {[%emt 0:00:04]} 4. Nxd4 {[%emt 0:00:03]} Nf6 {[%emt 0:00:04]} 5. Nc3 {[%emt 0:00:04]} Nc6 {[%emt 0:00:01]} 6. Bg5 {[%emt 0:00:15]} e6 {[%emt 0:00:03]} 7. Bb5 {[%emt 0:00:05]} Bd7 {[%emt 0:00:30]} 8. Qd3 {[%emt 0:00:21]} h6 {[%emt 0:03:59]} 9. Bh4 {[%emt 0:00:12]} Ne5 {[%emt 0:24:24]} 10. Qh3 {[%emt 0:00:55]} Rc8 {[%emt 0:04:54]} 11. O-O-O {[%emt 0:04:36] f4 is the strong threat.} Bxb5 {[%emt 0:05:00]} 12. Ndxb5 {[%emt 0:02:23]} ({White should play} 12. Ncxb5 $16 {[%cal Od4e6] Nxe6! would now be deadly.} Be7 13. f4 (13. Nxa7 Ra8 $11)) 12... a6 $11 {[%emt 0:08:01]} 13. f4 {[%emt 0:28:22]} (13. Nd4 $1 $14) 13... Ng6 $1 {[%emt 0:10:08]} 14. Nxd6+ {[%emt 0:03:36]} Bxd6 {[%emt 0:00:08]} 15. e5 $36 {[%emt 0:00:08][%mdl 2048] White has good play.} Nxh4 {[%emt 0:17:13]} (15... Nxf4 16. Qf3 Rxc3 17. Qxf4 $14) 16. Qxh4 {[%emt 0:12:45]} Rxc3 {[%emt 0:00:08]} 17. Rxd6 $16 {[%emt 0:00:29]} Qa5 {[%emt 0:01:28]} 18. exf6 {[%emt 0:09:26]} ({Weaker is} 18. bxc3 Ne4 19. Rd3 (19. Rd4 Nxc3 20. Kb2 Na4+ 21. Kc1 O-O $11) 19... O-O $11 (19... Qxa2 20. Qd8#) (19... Qa3+ 20. Kd1 $14)) 18... O-O {[%emt 0:00:10][%cal Of8c8,Be8g8,Bg8g7,Bg7f6][%mdl 32]} 19. Rhd1 {[%emt 0:12:10]} (19. bxc3 Qa3+ 20. Kb1 Qxd6 $18) 19... Rc4 {[%emt 0:05:43]} 20. fxg7 {[%emt 0:02:37]} Rfc8 {[%emt 0:03:05] [#]} 21. Rd8+ $1 {[%emt 0:10:08]} (21. Qxh6 {gets mated.} Rxc2+ 22. Kb1 Rc1+ 23. Rxc1 Qf5+) 21... Kxg7 {[%emt 0:00:10]} 22. Qg3+ {[%emt 0:02:28]} Kf6 {[%emt 0:00:33]} 23. Qh4+ {[%emt 0:01:48]} Kg7 {[%emt 0:00:07]} 24. Rxc8 {[%emt 0:02:03]} Rxc8 {[%emt 0:00:03][%mdl 4096] Endgame. KQR-KQR} 25. Rd3 {[%emt 0:00:26]} ({White should try} 25. Qg3+ $16 Kf8 26. Qb3) 25... Qxa2 $14 {[%emt 0:04:22] [#] Strongly threatening ...Qa1+.} 26. Rg3+ {[%emt 0:03:14]} Kh7 {[%emt 0:00:06]} 27. Qf6 {[%emt 0:00:29][%csl Gg3][%cal Rf6g7]} Qa1+ {[%emt 0:00:06]} 28. Kd2 {[%emt 0:00:04][%csl Gg3][%cal Rf6g7]} Qa5+ {[%emt 0:00:03]} 29. c3 {[%emt 0:00:42][%csl Gg3][%cal Rf6g7]} Qd8+ {[%emt 0:00:06]} 30. Qxd8 {[%emt 0:00:07]} Rxd8+ {[%emt 0:00:02] Weighted Error Value: White=0.26 (precise) /Black=0.17 (very precise) .  Mistake:       	White=3     	Black=1      Inaccurate:     	White=1     	Black=4      OK:         	White=10    	Black=5      Best:        	White=3     	Black=7      Strong:       	---       	Black=1} 1/2-1/2

[Event "28th Tamil Nadu IM Norm 2024"]
[Site "Tamil Nadu"]
[Date "2024.09.17"]
[Round "4.1"]
[White "Podolchenko, Evgeniy"]
[Black "Manik, Mikulas"]
[Result "1/2-1/2"]
[ECO "D14"]
[WhiteElo "2338"]
[BlackElo "2316"]
[Annotator "RC"]
[PlyCount "21"]
[EventDate "2024.09.15"]
[EventCountry "IND"]
[SourceTitle "playchess.com"]
[Source "ChessBase"]
[SourceQuality "1"]
[TimeControl "5400+30"]

1. d4 {[%emt 0:02:14]} Nf6 {[%emt 0:00:08]} 2. c4 {[%emt 0:00:05]} c6 {[%emt 0:00:06]} 3. Nc3 {[%emt 0:00:03]} d5 {[%emt 0:00:06]} 4. cxd5 {[%emt 0:00:02]} cxd5 {[%emt 0:00:05]} 5. Nf3 {[%emt 0:00:05]} Nc6 {[%emt 0:00:07]} 6. Bf4 {[%emt 0:00:03]} Bf5 {[%emt 0:03:01]} 7. Qb3 {[%emt 0:00:21]} Na5 {[%emt 0:00:17]} 8. Qa4+ {[%emt 0:00:04]} Nc6 {[%emt 0:00:08]} 9. Qb3 {[%emt 0:00:05]} Na5 {[%emt 0:00:06]} 10. Qa4+ {[%emt 0:00:04]} Nc6 {[%emt 0:00:04]} 11. Qb3 {[%emt 0:00:04]} 1/2-1/2

[Event "28th Tamil Nadu IM Norm 2024"]
[Site "Tamil Nadu"]
[Date "2024.09.17"]
[Round "4.2"]
[White "Dhruva Thota"]
[Black "Vahidov, Tair"]
[Result "1-0"]
[ECO "C43"]
[WhiteElo "2342"]
[BlackElo "2345"]
[Annotator "TA"]
[PlyCount "77"]
[EventDate "2024.09.15"]
[EventCountry "IND"]
[SourceTitle "playchess.com"]
[Source "ChessBase"]
[SourceQuality "1"]
[TimeControl "5400+30"]

{[%evp 14,77,0,0,0,0,0,-10,0,0,25,0,6,12,14,7,19,0,12,13,8,13,15,21,109,104,200,209,193,195,323,335,337,339,339,337,343,248,293,228,569,562,546,454,475,468,458,457,469,469,469,469,461,454,463,458,448,372,517,497,647,663,691,684,663,587]} 1. e4 {[%emt 0:00:08]} e5 {[%emt 0:01:07]} 2. Nf3 {[%emt 0:00:18]} Nf6 {[%emt 0:00:33]} 3. d4 {[%emt 0:00:30]} Nxe4 {[%emt 0:00:46]} 4. Bd3 {[%emt 0:00:09]} d5 {[%emt 0:00:08]} 5. Nxe5 {[%emt 0:00:08]} Nd7 {[%emt 0:01:06]} 6. Nc3 {[%emt 0:00:19]} Nxe5 {[%emt 0:04:28]} 7. dxe5 {[%emt 0:00:13]} Nxc3 {[%emt 0:02:09]} 8. bxc3 {[%emt 0:00:05]} Bc5 {[%emt 0:00:09]} 9. O-O {[%emt 0:00:23]} O-O {[%emt 0:12:37]} 10. Rb1 {[%emt 0:00:26]} Qh4 {[%emt 0:01:42] The position is equal.} (10... Re8 {simplifies} 11. Re1 Qh4 12. Be3 Bxe3 13. Rxe3 Rb8) 11. Qf3 {[%emt 0:00:38]} b6 {[%emt 0:03:16] [#]} 12. c4 $1 {[%emt 0:20:35]} c6 {[%emt 0:13:40]} (12... Bd4 13. Bb2) 13. cxd5 {[%emt 0:08:08]} cxd5 {[%emt 0:00:25]} 14. Qxd5 {[%emt 0:05:07]} Be6 {[%emt 0:05:19]} 15. Qf3 {[%emt 0:01:38]} Bxa2 {[%emt 0:21:07]} 16. Ra1 {[%emt 0:08:10]} Be6 {[%emt 0:00:37]} 17. Be4 {[%emt 0:02:33]} Rae8 {[%emt 0:07:59]} 18. Rxa7 {[%emt 0:05:56]} Bg4 {[%emt 0:07:43]} (18... Bc4 $11 {keeps the balance.} 19. Re1 Rxe5 20. Bxh7+ Qxh7 21. Rxe5 Bd6) 19. Qf4 $16 {[%emt 0:08:41] Black must now prevent h3. Really sharp! White is more active. White stays focused until the end.} g5 {[%emt 0:05:18]} 20. Qf6 $18 {[%emt 0:03:28]} (20. Qxg5+ $2 Qxg5 21. Bxg5 Rxe5 22. Bxh7+ (22. h3 $2 Be6 $19) 22... Kxh7 $19) 20... Re6 {[%emt 0:09:44]} 21. Bxg5 $40 {[%emt 0:01:11][%mdl 128] White has strong attack.} (21. Qxg5+ $2 Qxg5 22. Bxh7+ (22. Bxg5 $2 Rxe5 23. Bxh7+ Kxh7 $19) 22... Kxh7 $19) 21... Qh5 {[%emt 0:00:32]} (21... Rxf6 {was called for.} 22. Bxh4 Rf4) 22. Qf4 {[%emt 0:02:09]} Bd4 {[%emt 0:00:01]} 23. h3 {[%emt 0:10:02]} Be2 {[%emt 0:00:43][%cal Od4e5]} 24. Re1 {[%emt 0:02:08]} Bxe5 {[%emt 0:00:05][%cal Bd4e5,Be5g7,Bg7h6][%mdl 32]} 25. Qd2 {[%emt 0:04:30]} Bc4 {[%emt 0:00:15]} 26. Re7 {[%emt 0:05:43]} Rxe7 $2 {[%emt 0:00:31]} (26... Bg7 27. Rxe6 Bxe6) 27. Bxe7 {[%emt 0:00:16]} Re8 {[%emt 0:00:00]} 28. g4 {[%emt 0:03:41]} ({Weaker is} 28. Qd7 Bb5 29. Qa7 (29. Qxb5 $2 Bh2+ 30. Kxh2 Qxb5 $19) 29... Qh6 $16) 28... Qxh3 {[%emt 0:01:23][%csl Ge5][%cal Rh3h2]} 29. Qg5+ {[%emt 0:00:37]} Bg7 {[%emt 0:00:13]} 30. Bf6 {[%emt 0:00:37]} Qh6 {[%emt 0:00:05] [#]} 31. Bxh7+ $1 {[%emt 0:01:10][%mdl 512]} Kxh7 {[%emt 0:00:08][%cal Bg8h7,Bh7g6,Bg6h5][%mdl 32]} 32. Qxh6+ {[%emt 0:00:13]} (32. Rxe8 Qxf6 (32... Bxf6 33. Qg8#) 33. Qh5+ Bh6 $19) 32... Bxh6 {[%emt 0:00:20]} ({Not} 32... Kxh6 33. Bxg7+ (33. Rxe8 Bxf6 34. f4 Kg7 $17) 33... Kxg7 34. Rxe8 $18) 33. Rxe8 {[%emt 0:00:06][%mdl 4096] Endgame. KRB-KB} Kg6 {[%emt 0:00:17]} 34. Bd4 {[%emt 0:01:27]} b5 {[%emt 0:00:06]} 35. Be3 {[%emt 0:00:51]} Bg7 {[%emt 0:00:08]} 36. f4 {[%emt 0:00:45] White is clearly winning.} f5 {[%emt 0:00:55]} 37. g5 {[%emt 0:00:40]} Kh5 {[%emt 0:00:46]} 38. Rd8 {[%emt 0:01:03] Against Bd5. Bd4 would now be deadly.} Kg4 {[%emt 0:00:26]} 39. Bd4 {[%emt 0:00:36] Weighted Error Value: White=0.16 (very precise) /Black=0.42.  Mistake:       	---       	Black=4      Inaccurate:     	---       	Black=2      OK:         	White=13    	Black=9      Best:        	White=7     	Black=4      Brilliant:      	White=1     	---} 1-0